fUSD/lending_fUSD_20240109
["ID","MTS","AMOUNT","RATE_DAILY","PERIOD"]
[310980164,1704838327927,-596.580001,0.00041589,30]
[310980165,1704838327938,-500.0,0.00041589,30]
[310980166,1704838327948,-1360.4,0.00041589,30]
[310980167,1704838327958,-500.0,0.00041589,30]
[310980168,1704838327969,-1761.96,0.00041589,30]
[310980169,1704838327979,-704.3,0.00041589,30]
[310980170,1704838327989,-500.0,0.00041589,30]
[310980171,1704838327999,-500.0,0.00041589,30]
[310980172,1704838328009,-500.0,0.00041589,30]
[310980173,1704838328019,-500.0,0.00041589,30]
[310980174,1704838328029,-861.7,0.00041589,30]
[310980175,1704838328038,-943.22,0.00041589,30]
[310980176,1704838328048,-826.82,0.00041589,30]
[310980177,1704838328058,-500.0,0.00041589,30]
[310980178,1704838328067,-500.0,0.00041589,30]
[310980179,1704838328077,-594.11,0.00041589,30]
[310980180,1704838328086,-500.0,0.00041589,30]
[310980181,1704838328096,-1067.02,0.00041589,30]
[310980182,1704838328108,-699.02,0.00041589,30]
[310980183,1704838328117,-510.36,0.00041589,30]
[310980184,1704838328127,-500.0,0.00041589,30]
[310980185,1704838328136,-2016.86,0.00041589,30]
[310980186,1704838328146,-500.0,0.00041589,30]
[310980187,1704838328155,-500.0,0.00041589,30]
[310980188,1704838328165,-500.0,0.00041589,30]
[310980189,1704838328174,-500.0,0.00041589,30]
[310980190,1704838328184,-1173.29,0.00041589,30]
[310980191,1704838328193,-591.37,0.00041589,30]
[310980192,1704838328203,-500.0,0.00041589,30]
[310980193,1704838328212,-862.87,0.00041589,30]
[310980194,1704838328222,-1728.77,0.00041589,30]
[310980195,1704838328231,-500.0,0.00041589,30]
[310980196,1704838328243,-1603.78,0.00041589,30]
[310980197,1704838328985,-506.6,0.00041589,30]
[310980198,1704838329010,-500.0,0.00041589,30]
[310980199,1704838329029,-691.21,0.00041589,30]
[310980200,1704838329050,-616.24,0.00041589,30]
[310980201,1704838329064,-500.0,0.00041589,30]
[310980202,1704838329082,-604.7197083,0.00041589,30]
[310980203,1704838329097,-686.18,0.00041589,30]
[310980204,1704838329113,-663.05,0.00041589,30]
[310980205,1704838329122,-500.0,0.00041589,30]
[310980206,1704838329131,-796.05,0.00041589,30]
[310980207,1704838329140,-988.23,0.00041589,30]
[310980208,1704838329149,-926.22,0.00041589,30]
[310980209,1704838329158,-605.45,0.00041589,6]
[310980210,1704838329167,-1356.8,0.00041589,30]
[310980211,1704838329177,-500.0,0.00041589,30]
[310980212,1704838329187,-514.19,0.00041589,30]
[310980213,1704838329197,-711.06,0.00041589,30]
[310980214,1704838329206,-1957.66,0.00041589,30]
[310980215,1704838329215,-683.33,0.00041589,30]
[310980216,1704838329224,-500.0,0.00041589,30]
[310980217,1704838329234,-803.13,0.00041589,30]
[310980218,1704838329244,-1229.9,0.00041589,30]
[310980219,1704838329254,-500.0,0.00041589,30]
[310980220,1704838329264,-816.32,0.00041589,30]
[310980221,1704838329273,-555.56,0.00041589,30]
[310980222,1704838329283,-651.53,0.00041589,30]
[310980223,1704838329293,-627.3,0.00041589,30]
[310980224,1704838329303,-500.0,0.00041589,30]
[310980225,1704838329312,-688.6,0.00041589,30]
[310980226,1704838329321,-572.21,0.00041589,30]
[310980227,1704838329330,-500.0,0.00041589,30]
[310980228,1704838329339,-500.0,0.00041589,30]
[310980229,1704838329352,-500.0,0.00041589,30]
[310980230,1704838329361,-500.0,0.00041589,30]
[310980231,1704838329369,-1308.0,0.00041589,30]
[310980232,1704838329378,-500.0,0.00041589,30]
[310980233,1704838329387,-500.0,0.00041589,30]
[310980234,1704838329397,-500.0,0.00041589,30]
[310980235,1704838329406,-633.27,0.00041589,30]
[310980236,1704838329415,-500.0,0.00041589,30]
[310980237,1704838329425,-886.58,0.00041589,30]
[310980238,1704838329435,-1462.94,0.00041589,30]
[310980239,1704838329445,-500.0,0.00041589,30]
[310980240,1704838329454,-500.0,0.00041589,30]
[310980241,1704838329465,-500.0,0.00041589,30]
[310980242,1704838329475,-727.24,0.00041589,30]
[310980243,1704838329484,-500.0,0.00041589,30]
[310980244,1704838329493,-500.0,0.00041589,30]
[310980245,1704838329503,-1000.0,0.00041589,7]
[310980246,1704838329512,-1914.86,0.00041589,30]
[310980247,1704838329521,-601.88,0.00041589,30]
[310980248,1704838329530,-500.0,0.00041589,30]
[310980249,1704838329539,-500.0,0.00041589,30]
[310980250,1704838329549,-580.89,0.00041589,30]
[310980251,1704838329558,-915.42,0.00041589,30]
[310980252,1704838329568,-545.07,0.00041589,30]
[310980253,1704838329577,-829.5,0.00041589,30]
[310980254,1704838329586,-508.88,0.00041589,30]
[310980255,1704838329596,-935.65,0.00041589,30]
[310980256,1704838329608,-588.03,0.00041589,30]
[310980257,1704838329617,-371.50926236,0.00041589,30]
[310980258,1704838329626,-610.47,0.00041589,30]
[310980259,1704838329635,-695.09,0.00041589,30]
[310980260,1704838329645,-844.75,0.00041589,30]
[310980261,1704838329654,-1122.31,0.00041589,30]
[310980262,1704838329663,-500.0,0.00041589,30]
[310980263,1704838329673,-500.0,0.00041589,30]
[310980264,1704838329682,-742.19,0.00041589,30]
[310980265,1704838329691,-502.71,0.00041589,30]
[310980266,1704838329701,-500.0,0.00041589,30]
[310980267,1704838329710,-500.0,0.00041589,30]
[310980268,1704838329719,-500.0,0.00041589,30]
[310980269,1704838329728,-830.81,0.00041589,30]
[310980270,1704838329738,-654.63,0.00041589,30]
[310980271,1704838329747,-514.17,0.00041589,30]
[310980272,1704838329756,-919.89,0.00041589,30]
[310980273,1704838329766,-500.0,0.00041589,30]
[310980274,1704838329775,-500.0,0.00041589,30]
[310980275,1704838329784,-500.0,0.00041589,30]
[310980276,1704838329794,-1129.63,0.00041589,30]
[310980277,1704838329804,-225.3536656,0.00041589,30]
[310980278,1704838329842,-274.6463344,0.00041589,30]
[310980279,1704838329853,-500.0,0.00041589,30]
[310980280,1704838329862,-176.64,0.00041589,30]
[310980281,1704838329872,-613.36,0.00041589,30]
[310980282,1704838329882,-500.0,0.00041589,30]
[310980283,1704838329892,-500.0,0.00041589,30]
[310980284,1704838329902,-666.21,0.00041589,30]
[310980285,1704838329912,-638.54,0.00041589,30]
[310980286,1704838329922,-663.01,0.00041589,30]
[310980287,1704838329931,-500.0,0.00041589,30]
[310980288,1704838329942,-557.76,0.00041589,30]
[310980289,1704838329951,-853.39,0.00041589,30]
[310980290,1704838329960,-715.94,0.00041589,30]
[310980291,1704838329970,-500.0,0.00041589,30]
[310980292,1704838329979,-500.0,0.00041589,30]
[310980293,1704838329989,-500.0,0.00041589,30]
[310980294,1704838329998,-1200.54,0.00041589,30]
[310980295,1704838330007,-500.0,0.00041589,30]
[310980296,1704838330017,-500.0,0.00041589,30]
[310980297,1704838330028,-500.0,0.00041589,30]
[310980298,1704838330038,-500.0,0.00041589,30]
[310980299,1704838330047,-500.0,0.00041589,30]
[310980300,1704838330056,-500.0,0.00041589,30]
[310980301,1704838330066,-805.96,0.00041589,30]
[310980302,1704838330076,-500.0,0.00041589,30]
[310980303,1704838330086,-534.28,0.00041589,30]
[310980304,1704838330096,-500.0,0.00041589,30]
[310980305,1704838330107,-771.52,0.00041589,30]
[310980306,1704838330117,-500.0,0.00041589,30]
[310980307,1704838330127,-500.0,0.00041589,30]
[310980308,1704838330137,-500.0,0.00041589,30]
[310980309,1704838330146,-500.0,0.00041589,30]
[310980310,1704838330155,-711.66,0.00041589,30]
[310980311,1704838330165,-500.0,0.00041589,30]
[310980312,1704838330174,-717.43,0.00041589,30]
[310980313,1704838330184,-975.47,0.00041589,30]
[310980314,1704838330193,-500.0,0.00041589,30]
[310980315,1704838330202,-500.0,0.00041589,30]
[310980316,1704838330211,-1000.0,0.00041589,30]
[310980317,1704838330221,-500.0,0.00041589,30]
[310980318,1704838330230,-500.0,0.00041589,30]
[310980319,1704838330242,-811.72,0.00041589,30]
[310980320,1704838330255,-500.0,0.00041589,30]
[310980321,1704838330265,-1470.07,0.00041589,30]
[310980322,1704838330274,-1184.23,0.00041589,30]
[310980323,1704838330283,-500.0,0.00041589,30]
[310980324,1704838330294,-500.0,0.00041589,30]
[310980325,1704838330303,-500.0,0.00041589,7]
[310980326,1704838330313,-546.94,0.00041589,30]
[310980327,1704838330322,-500.0,0.00041589,30]
[310980328,1704838330332,-437.43790273,0.00041589,30]
[310980329,1704838330341,-514.97,0.00041589,30]
[310980330,1704838330350,-554.43,0.00041589,30]
[310980331,1704838330361,-500.0,0.00041589,30]
[310980332,1704838330370,-693.86,0.00041589,30]
[310980333,1704838330379,-926.72,0.00041589,30]
[310980334,1704838330387,-948.49,0.00041589,30]
[310980335,1704838330396,-500.0,0.00041589,30]
[310980336,1704838330405,-948.28,0.00041589,30]
[310980337,1704838330414,-563.2,0.00041589,30]
[310980338,1704838330423,-1417.25,0.00041589,30]
[310980339,1704838330433,-882.71,0.00041589,30]
[310980340,1704838330443,-500.0,0.00041589,30]
[310980341,1704838330452,-500.0,0.00041589,30]
[310980342,1704838330461,-686.66,0.00041589,30]
[310980343,1704838330470,-500.0,0.00041589,30]
[310980344,1704838330480,-500.0,0.00041589,30]
[310980345,1704838330489,-1150.95,0.00041589,30]
[310980346,1704838330498,-500.0,0.00041589,30]
[310980347,1704838330507,-1076.63,0.00041589,30]
[310980348,1704838330517,-766.36,0.00041589,30]
[310980349,1704838330526,-522.65,0.00041589,30]
[310980350,1704838330535,-1195.65,0.00041589,30]
[310980351,1704838330544,-1655.71,0.00041589,30]
[310980352,1704838330554,-500.0,0.00041589,30]
[310980353,1704838330564,-500.0,0.00041589,30]
[310980354,1704838330574,-500.0,0.00041589,30]
[310980355,1704838330585,-500.0,0.00041589,30]
[310980356,1704838330594,-561.13,0.00041589,30]
[310980357,1704838330605,-500.0,0.00041589,30]
[310980358,1704838330614,-1772.94,0.00041589,30]
[310980359,1704838330623,-500.0,0.00041589,30]
[310980360,1704838330632,-500.0,0.00041589,30]
[310980361,1704838330641,-962.61,0.00041589,30]
[310980362,1704838330651,-500.0,0.00041589,30]
[310980363,1704838330660,-1512.77,0.00041589,30]
[310980364,1704838330670,-574.09,0.00041589,30]
[310980365,1704838330679,-500.0,0.00041589,30]
[310980366,1704838330688,-620.4,0.00041589,30]
[310980367,1704838330697,-726.32,0.00041589,30]
[310980368,1704838330706,-500.0,0.00041589,30]
[310980369,1704838330716,-500.0,0.00041589,30]
[310980370,1704838330725,-4344.57,0.00041589,30]
[310980371,1704838330734,-1267.88,0.00041589,30]
[310980372,1704838330743,-500.0,0.00041589,30]
[310980373,1704838330752,-500.0,0.00041589,30]
[310980374,1704838330761,-500.0,0.00041589,30]
[310980375,1704838330770,-500.0,0.00041589,30]
[310980376,1704838330779,-994.56,0.00041589,30]
[310980377,1704838330788,-1000.0,0.00041589,30]
[310980378,1704838330797,-808.78,0.00041589,30]
[310980379,1704838330806,-500.0,0.00041589,30]
[310980380,1704838330815,-1548.01,0.00041589,30]
[310980381,1704838330825,-818.42,0.00041589,30]
[310980382,1704838330834,-1847.0,0.00041589,30]
[310980383,1704838330843,-500.0,0.00041589,30]
[310980384,1704838330853,-1398.94,0.00041589,30]
[310980385,1704838330862,-608.39,0.00041589,30]
[310980386,1704838330872,-612.28,0.00041589,30]
[310980387,1704838330881,-500.0,0.00041589,30]
[310980388,1704838330890,-500.0,0.00041589,30]
[310980389,1704838330899,-500.0,0.00041589,30]
[310980390,1704838330908,-500.0,0.00041589,30]
[310980391,1704838330917,-500.0,0.00041589,30]
[310980392,1704838330926,-549.8,0.00041589,30]
[310980393,1704838330935,-900.47,0.00041589,10]
[310980394,1704838330944,-723.87,0.00041589,30]
[310980395,1704838330953,-2028.27,0.00041589,30]
[310980396,1704838330963,-2514.08,0.00041589,30]
[310980397,1704838330972,-1147.93,0.00041589,30]
[310980398,1704838330981,-500.0,0.00041589,30]
[310980399,1704838330990,-500.0,0.00041589,30]
[310980400,1704838330999,-899.03,0.00041589,30]
[310980401,1704838331008,-2024.87,0.00041589,30]
[310980402,1704838331017,-500.0,0.00041589,30]
[310980403,1704838331026,-500.0,0.00041589,30]
[310980404,1704838331035,-607.6,0.00041589,30]
[310980405,1704838331044,-1740.87,0.00041589,30]
[310980406,1704838331053,-500.0,0.00041589,30]
[310980407,1704838331062,-1137.4,0.00041589,30]
[310980408,1704838331071,-1102.73,0.00041589,30]
[310980409,1704838331080,-2568.33,0.00041589,30]
[310980410,1704838331089,-8096.32,0.00041589,30]
[310980411,1704838331099,-500.0,0.00041589,30]
[310980412,1704838331110,-889.91,0.00041589,30]
[310980413,1704838331119,-1731.94,0.00041589,30]
[310980414,1704838331127,-500.0,0.00041589,30]
[310980415,1704838331136,-500.0,0.00041589,30]
[310980416,1704838331145,-869.4,0.00041589,30]
[310980417,1704838331154,-588.64,0.00041589,30]
[310980418,1704838331163,-500.0,0.00041589,30]
[310980419,1704838331173,-573.17,0.00041589,30]
[310980420,1704838331182,-2390.88,0.00041589,30]
[310980421,1704838331191,-530.46,0.00041589,30]
[310980422,1704838331201,-1686.48,0.00041589,30]
[310980423,1704838331210,-1139.86,0.00041589,30]
[310980424,1704838331219,-1680.83,0.00041589,30]
[310980425,1704838331229,-1855.67,0.00041589,30]
[310980426,1704838331239,-964.43,0.00041589,30]
[310980427,1704838331248,-1222.91,0.00041589,30]
[310980428,1704838331258,-500.0,0.00041589,30]
[310980429,1704838331268,-1068.17,0.00041589,30]
[310980430,1704838331277,-4050.58,0.00041589,30]
[310980431,1704838331286,-500.0,0.00041589,30]
[310980432,1704838331295,-1169.54,0.00041589,30]
[310980433,1704838331305,-500.0,0.00041589,30]
[310980434,1704838331314,-1173.13,0.00041589,30]
[310980435,1704838331324,-3009.19,0.00041589,30]
[310980436,1704838331333,-500.0,0.00041589,30]
[310980437,1704838331342,-1486.96,0.00041589,30]
[310980438,1704838331353,-500.0,0.00041589,30]
[310980439,1704838331362,-1254.88,0.00041589,30]
[310980440,1704838331371,-1602.35,0.00041589,30]
[310980441,1704838331381,-516.09,0.00041589,30]
[310980442,1704838331391,-524.88,0.00041589,30]
[310980443,1704838331400,-500.0,0.00041589,30]
[310980444,1704838331410,-500.0,0.00041589,30]
[310980445,1704838331419,-500.0,0.00041589,30]
[310980446,1704838331429,-2722.07,0.00041589,30]
[310980447,1704838331439,-650.86,0.00041589,30]
[310980448,1704838331449,-284.34179681,0.00041589,30]
[310980449,1704838331458,-1778.76,0.00041589,30]
[310980450,1704838331468,-500.0,0.00041589,30]
[310980451,1704838331477,-1497.92,0.00041589,30]
[310980452,1704838331487,-4756.62,0.00041589,30]
[310980453,1704838331496,-500.0,0.00041589,30]
[310980454,1704838331505,-1011.55,0.00041589,30]
[310980455,1704838331513,-1007.52,0.00041589,30]
[310980456,1704838331522,-4422.57,0.00041589,30]
[310980457,1704838331532,-500.0,0.00041589,30]
[310980458,1704838331541,-3355.27,0.00041589,30]
[310980459,1704838331550,-1217.72,0.00041589,30]
[310980460,1704838331559,-6369.73,0.00041589,30]
[310980461,1704838331568,-996.83,0.00041589,7]
[310980462,1704838331577,-672.82,0.00041589,30]
[310980463,1704838331586,-1403.31,0.00041589,30]
[310980464,1704838331595,-1265.02,0.00041589,30]
[310980465,1704838331607,-1224.16,0.00041589,30]
[310980466,1704838331616,-500.0,0.00041589,30]
[310980467,1704838331625,-500.0,0.00041589,30]
[310980468,1704838331634,-2400.29,0.00041589,30]
[310980469,1704838331643,-1656.57,0.00041589,30]
[310980470,1704838331653,-1474.37,0.00041589,30]
[310980471,1704838331662,-5306.63,0.00041589,30]
[310980472,1704838331672,-1253.27,0.00041589,30]
[310980473,1704838331681,-500.0,0.00041589,30]
[310980474,1704838331690,-500.0,0.00041589,30]
[310980475,1704838331700,-5738.94,0.00041589,30]
[310980476,1704838331709,-920.49,0.00041589,30]
[310980477,1704838331719,-500.0,0.00041589,30]
[310980478,1704838331728,-500.0,0.00041589,30]
[310980479,1704838331737,-648.76,0.00041589,30]
[310980480,1704838331747,-2078.17,0.00041589,30]
[310980481,1704838331756,-300.0,0.00041589,30]
[310980482,1704838331765,-1636.77,0.00041589,30]
[310980483,1704838331775,-23527.09,0.00041589,30]
[310980484,1704838331784,-1419.15,0.00041589,30]
[310980485,1704838331794,-500.0,0.00041589,30]
[310980486,1704838331803,-40274.12,0.00041589,30]
[310980487,1704838331812,-1326.08,0.00041589,30]
[310980488,1704838331822,-1179.37,0.00041589,30]
[310980489,1704838331831,-1844.23,0.00041589,30]
[310980490,1704838331840,-716.2,0.00041589,30]
[310980491,1704838331849,-2095.91,0.00041589,30]
[310980492,1704838331861,-631.28,0.00041589,30]
[310980493,1704838331870,-947.08,0.00041589,30]
[310980494,1704838331879,-618.42,0.00041589,30]
[310980495,1704838331889,-1225.69,0.00041589,30]
[310980496,1704838331899,-500.0,0.00041589,30]
[310980497,1704838331908,-19597.44,0.00041589,30]
[310980498,1704838331917,-2191.59,0.00041589,30]
[310980499,1704838331927,-987.64,0.00041589,30]
[310980500,1704838331936,-548.74,0.00041589,30]
[310980501,1704838331945,-1606.18,0.00041589,30]
[310980502,1704838331954,-275.12419541,0.00041589,30]
[310980503,1704838331965,-500.0,0.00041589,30]
[310980504,1704838331974,-500.0,0.00041589,30]
[310980505,1704838331983,-500.0,0.00041589,30]
[310980506,1704838331993,-2815.18,0.00041589,30]
[310980507,1704838332002,-1821.15,0.00041589,30]
[310980508,1704838332011,-500.0,0.00041589,30]
[310980509,1704838332021,-879.9,0.00041589,30]
[310980510,1704838332030,-2862.05,0.00041589,30]
[310980511,1704838332039,-714.75,0.00041589,30]
[310980512,1704838332048,-500.0,0.00041589,30]
[310980513,1704838332057,-909.19,0.00041589,30]
[310980514,1704838332066,-878.71,0.00041589,30]
[310980515,1704838332075,-500.0,0.00041589,30]
[310980516,1704838332084,-1271.06,0.00041589,30]
[310980517,1704838332093,-826.6,0.00041589,30]
[310980518,1704838332102,-526.8,0.00041589,30]
[310980519,1704838332112,-1798.77,0.00041589,30]
[310980520,1704838332121,-3726.94,0.00041589,30]
[310980521,1704838332131,-500.0,0.00041589,30]
[310980522,1704838332140,-9050.94,0.00041589,30]
[310980523,1704838332149,-4968.76,0.00041589,30]
[310980524,1704838332158,-967.65,0.00041589,30]
[310980525,1704838332168,-500.0,0.00041589,30]
[310980526,1704838332359,-500.0,0.00041589,30]
[310980527,1704838332382,-3143.9,0.00041589,30]
[310980528,1704838332391,-500.0,0.00041589,30]
[310980529,1704838332401,-500.0,0.00041589,30]
[310980530,1704838332410,-500.0,0.00041589,30]
[310980531,1704838332420,-4640.82,0.00041589,30]
[310980532,1704838332430,-3691.28,0.00041589,30]
[310980533,1704838332439,-4801.8,0.00041589,30]
[310980534,1704838332448,-763.68,0.00041589,30]
[310980535,1704838332457,-500.0,0.00041589,30]
[310980536,1704838332467,-500.0,0.00041589,30]
[310980537,1704838332477,-500.0,0.00041589,30]
[310980538,1704838332486,-1212.84,0.00041589,30]
[310980539,1704838332495,-879.66,0.00041589,30]
[310980540,1704838332504,-808.69,0.00041589,30]
[310980541,1704838332513,-755.7,0.00041589,30]
[310980542,1704838332523,-500.0,0.00041589,30]
[310980543,1704838332532,-500.0,0.00041589,30]
[310980544,1704838332541,-2912.57,0.00041589,30]
[310980545,1704838332551,-1238.08,0.00041589,30]
[310980546,1704838332560,-2784.54,0.00041589,30]
[310980547,1704838332570,-1161.59,0.00041589,30]
[310980548,1704838332579,-3777.11,0.00041589,30]
[310980549,1704838332589,-8677.14,0.00041589,30]
[310980550,1704838332599,-500.0,0.00041589,30]
[310980551,1704838332610,-500.0,0.00041589,30]
[310980552,1704838332619,-592.81,0.00041589,30]
[310980553,1704838332629,-2676.02,0.00041589,30]
[310980554,1704838332638,-500.0,0.00041589,30]
[310980555,1704838332648,-1639.34,0.00041589,30]
[310980556,1704838332657,-500.0,0.00041589,30]
[310980557,1704838332667,-500.0,0.00041589,30]
[310980558,1704838332677,-1963.6,0.00041589,30]
[310980559,1704838332686,-3334.88,0.00041589,30]
[310980560,1704838332696,-500.0,0.00041589,30]
[310980561,1704838332705,-2139.94,0.00041589,30]
[310980562,1704838332715,-500.0,0.00041589,30]
[310980563,1704838332724,-500.0,0.00041589,30]
[310980564,1704838332733,-315.8,0.00041589,30]
[310980565,1704838332743,-4276.14,0.00041589,30]
[310980566,1704838332752,-2333.49,0.00041589,30]
[310980567,1704838332762,-5902.3,0.00041589,30]
[310980568,1704838332775,-500.0,0.00041589,30]
[310980569,1704838332785,-517.1,0.00041589,30]
[310980570,1704838332795,-3826.6,0.00041589,30]
[310980571,1704838332805,-2082.79,0.00041589,30]
[310980572,1704838332815,-500.0,0.00041589,30]
[310980573,1704838332825,-500.0,0.00041589,30]
[310980574,1704838332834,-531.76,0.00041589,30]
[310980575,1704838332844,-500.0,0.00041589,30]
[310980576,1704838332855,-2908.78,0.00041589,30]
[310980577,1704838332865,-561.12140868,0.00041589,30]
[310980578,1704838332875,-500.0,0.00041589,30]
[310980579,1704838332886,-500.0,0.00041589,30]
[310980580,1704838332896,-1364.47,0.00041589,30]
[310980581,1704838332906,-588.57,0.00041589,30]
[310980582,1704838332916,-500.0,0.00041589,30]
[310980583,1704838332925,-1379.01,0.00041589,30]
[310980584,1704838332935,-769.62,0.00041589,30]
[310980585,1704838332946,-591.89,0.00041589,30]
[310980586,1704838332956,-4720.58,0.00041589,30]
[310980587,1704838332965,-496.97521267,0.00041589,30]
[310980588,1704838332976,-323.43728502,0.00041589,30]
[310980589,1704838332986,-6067.59,0.00041589,30]
[310980590,1704838332996,-3994.31,0.00041589,30]
[310980591,1704838333006,-500.0,0.00041589,30]
[310980592,1704838333016,-500.0,0.00041589,30]
[310980593,1704838333026,-500.0,0.00041589,30]
[310980594,1704838333036,-500.0,0.00041589,30]
[310980595,1704838333047,-552.23,0.00041589,30]
[310980596,1704838333058,-695.23,0.00041589,30]
[310980597,1704838333068,-500.0,0.00041589,30]
[310980598,1704838333078,-1473.45,0.00041589,30]
[310980599,1704838333088,-500.0,0.00041589,30]
[310980600,1704838333098,-1459.91,0.00041589,30]
[310980601,1704838333110,-12710.79,0.00041589,30]
[310980602,1704838333120,-6096.97,0.00041589,30]
[310980603,1704838333130,-1115.38,0.00041589,30]
[310980604,1704838333140,-1656.2,0.00041589,30]
[310980605,1704838333149,-14431.54,0.00041589,30]
[310980606,1704838333160,-910.24,0.00041589,30]
[310980607,1704838333170,-2190.5,0.00041589,30]
[310980608,1704838333181,-544.6,0.00041589,30]
[310980609,1704838333191,-773.4,0.00041589,30]
[310980610,1704838333201,-2105.66,0.00041589,30]
[310980611,1704838333211,-573.96278916,0.00041589,30]
[310980612,1704838333222,-915.72,0.00041589,30]
[310980613,1704838333232,-500.0,0.00041589,30]
[310980614,1704838333242,-1032.38,0.00041589,30]
[310980615,1704838333252,-14785.85,0.00041589,30]
[310980616,1704838333262,-1211.12,0.00041589,30]
[310980617,1704838333273,-22037.22,0.00041589,30]
[310980618,1704838333283,-500.0,0.00041589,30]
[310980619,1704838333294,-542.59,0.00041589,30]
[310980620,1704838333304,-1200.26,0.00041589,30]
[310980621,1704838333314,-1158.78,0.00041589,30]
[310980622,1704838333325,-500.0,0.00041589,30]
[310980623,1704838333335,-1698.21,0.00041589,30]
[310980624,1704838333345,-2087.61,0.00041589,30]
[310980625,1704838333358,-503.59096942,0.00041589,30]
[310980626,1704838333368,-2690.56,0.00041589,30]
[310980627,1704838333378,-678.36,0.00041589,30]
[310980628,1704838333388,-868.29,0.00041589,30]
[310980629,1704838333398,-2233.54,0.00041589,30]
[310980630,1704838333408,-500.0,0.00041589,30]
[310980631,1704838333418,-396.66798292,0.00041589,30]
[310980632,1704838333429,-3590.14,0.00041589,30]
[310980633,1704838333439,-696.1,0.00041589,30]
[310980634,1704838333450,-935.97,0.00041589,30]
[310980635,1704838333461,-1289.91,0.00041589,30]
[310980636,1704838333471,-500.0,0.00041589,30]
[310980637,1704838333482,-932.38,0.00041589,30]
[310980638,1704838333493,-3087.45,0.00041589,30]
[310980639,1704838333502,-1489.70700531,0.00041589,30]
[310980640,1704838333948,-266.28299469,0.00041589,30]
[310980641,1704838333958,-1475.03402485,0.00041589,30]
[310980642,1704838334854,-324.66,0.0003439,2]
[310980643,1704838334866,-324.66,0.00035368,2]
[310980644,1704838334875,-324.66,0.00036346,2]
[310980645,1704838334884,-324.66,0.00037325,2]
[310980646,1704838334893,-324.66,0.00038303,2]
[310980647,1704838334902,-56.64573047,0.00039282,2]
[310980648,1704838334914,-268.01426953,0.00039282,2]
[310980649,1704838334923,-189.20290247,0.00041,30]
[310980650,1704838334934,-295.70000001,0.00041,30]
[310980651,1704838334949,-299.11599,0.00041,30]
[310980652,1704838334960,-215.98110752,0.00041,30]
[310980653,1704838334969,-400.29546201,0.00041092,2]
[310980654,1704838334978,-896.15,0.00041095,30]
[310980655,1704838334987,-500.0,0.00041095,30]
[310980656,1704838334997,-2463.21,0.00041095,30]
[310980657,1704838335006,-400.29546201,0.00041147,2]
[310980658,1704838335015,-400.29546201,0.00041175,2]
[310980659,1704838335024,-371.38638256,0.00041178,30]
[310980660,1704838335035,-524.76361744,0.00041178,30]
[310980661,1704838335045,-112.9951891,0.00041178,30]
[310980662,1704838335075,-387.0048109,0.00041178,30]
[310980663,1704838335084,-2463.21,0.00041178,30]